fUST/lending_fUST_20250318
["ID","MTS","AMOUNT","RATE_DAILY","PERIOD"]
[356337239,1742292643463,-454.56558484,9.589e-05,2]
[356337240,1742292643472,-514.93,9.589e-05,2]
[356337241,1742292643481,-588.84,9.589e-05,2]
[356337242,1742292643490,-500.0,9.589e-05,2]
[356337243,1742292643499,-500.0,9.589e-05,2]
[356337244,1742292643509,-213.02793501,9.589e-05,2]
[356337245,1742292643518,-500.0,9.589e-05,2]
[356337246,1742292643527,-500.0,9.589e-05,2]
[356337247,1742292643536,-500.0,9.589e-05,2]
[356337248,1742292643545,-500.0,9.589e-05,2]
[356337249,1742292643555,-500.0,9.589e-05,2]
[356337250,1742292643564,-500.0,9.589e-05,2]
[356337251,1742292643573,-500.0,9.589e-05,2]
[356337252,1742292643583,-500.0,9.589e-05,2]
[356337253,1742292643592,-500.0,9.589e-05,2]
[356337254,1742292643601,-500.0,9.589e-05,2]
[356337255,1742292643610,-500.0,9.589e-05,2]
[356337256,1742292643619,-500.0,9.589e-05,2]
[356337257,1742292643628,-188.47465706,9.589e-05,2]
[356337258,1742292643637,-500.0,9.589e-05,2]
[356337259,1742292643647,-500.0,9.589e-05,2]
[356337260,1742292643655,-500.0,9.589e-05,2]
[356337261,1742292643665,-500.0,9.589e-05,2]
[356337262,1742292643674,-953.47,9.589e-05,2]
[356337263,1742292643684,-500.0,9.589e-05,2]
[356337264,1742292643693,-500.0,9.589e-05,2]
[356337265,1742292643702,-500.0,9.589e-05,2]
[356337266,1742292643711,-479.46996649,9.589e-05,2]
[356337267,1742292643720,-500.0,9.589e-05,2]
[356337268,1742292643729,-1083.91,9.589e-05,2]
[356337269,1742292643738,-500.0,9.589e-05,2]
[356337270,1742292643747,-1717.23,9.589e-05,2]
[356337271,1742292643757,-339.38501095,9.589e-05,2]
[356337272,1742292643766,-500.0,9.589e-05,2]
[356337273,1742292643775,-500.0,9.589e-05,2]
[356337274,1742292643785,-500.0,9.589e-05,2]
[356337275,1742292643794,-500.0,9.589e-05,2]
[356337276,1742292643804,-500.0,9.589e-05,2]
[356337277,1742292643814,-500.0,9.589e-05,2]
[356337278,1742292643824,-12364.48,9.589e-05,2]
[356337279,1742292643834,-2096.09,9.589e-05,2]
[356337280,1742292643844,-500.0,9.589e-05,2]
[356337281,1742292643855,-1274.94,9.589e-05,2]
[356337282,1742292643864,-42613.11,9.589e-05,2]
[356337283,1742292643874,-500.0,9.589e-05,2]
[356337284,1742292643883,-500.0,9.589e-05,2]
[356337285,1742292643893,-597.33,9.589e-05,2]
[356337286,1742292643902,-500.0,9.589e-05,2]
[356337287,1742292643912,-706.49,9.589e-05,2]
[356337288,1742292643921,-500.0,9.589e-05,2]
[356337289,1742292643930,-500.0,9.589e-05,2]
[356337290,1742292643939,-3256.79,9.589e-05,2]
[356337291,1742292643948,-185.08173714,9.589e-05,2]
[356337306,1742292646997,-715.1,8.219e-05,2]
[356337307,1742292647007,-500.0,8.219e-05,2]
[356337308,1742292647017,-596.01736231,8.493e-05,2]
[356337311,1742293481896,-188.5442356,7.468e-05,2]
[356337312,1742293481919,-57.0957644,7.468e-05,2]
[356337313,1742293504170,-300.0,7.467e-05,2]
[356337315,1742293511164,-150.0,7.468e-05,2]
[356337316,1742293552112,-24692.9042356,7.468e-05,2]
[356337317,1742293552134,-420.0,8.214e-05,2]
[356337318,1742293552156,-997.82375716,8.214e-05,2]
[356337319,1742293552179,-500.0,8.218e-05,2]
[356337320,1742293552201,-500.0,8.218e-05,2]
[356337321,1742293552224,-415.08612837,8.218e-05,2]
[356337322,1742293552246,-213.14987261,8.218e-05,2]
[356337323,1742293552267,-500.0,8.218e-05,2]
[356337324,1742293552291,-486.79582246,8.218e-05,2]
[356337325,1742293552312,-500.0,8.218e-05,2]
[356337326,1742293552334,-500.0,8.219e-05,2]
[356337327,1742293552353,-500.0,8.219e-05,2]
[356337328,1742293552375,-500.0,8.219e-05,2]
[356337329,1742293552397,-500.0,8.219e-05,2]
[356337330,1742293552417,-500.0,8.219e-05,2]
[356337331,1742293552437,-500.0,8.219e-05,2]
[356337332,1742293552458,-500.81109885,8.219e-05,2]
[356337333,1742293552480,-500.0,8.219e-05,2]
[356337334,1742293552500,-500.0,8.219e-05,2]
[356337335,1742293552520,-642.66747469,8.219e-05,2]
[356337336,1742293552542,-501.65576913,8.219e-05,2]
[356337337,1742293552562,-501.79238048,8.219e-05,2]
[356337338,1742293552583,-500.0,8.219e-05,2]
[356337339,1742293552603,-500.0,8.219e-05,2]
[356337340,1742293552624,-273.09111907,8.219e-05,2]
[356337341,1742293552644,-501.18523485,8.219e-05,2]
[356337342,1742293552664,-501.90924892,8.219e-05,2]
[356337343,1742293552684,-500.0,8.219e-05,2]
[356337344,1742293552705,-500.0,8.219e-05,2]
[356337345,1742293552727,-500.0,8.219e-05,2]
[356337346,1742293552749,-500.0,8.219e-05,2]
[356337347,1742293552770,-500.0,8.219e-05,2]
[356337348,1742293552791,-529.05432165,8.219e-05,2]
[356337349,1742293552811,-876.04,8.219e-05,2]
[356337350,1742293552833,-500.0,8.219e-05,2]
[356337351,1742293552854,-500.0,8.219e-05,2]
[356337352,1742293552874,-500.0,8.219e-05,2]
[356337353,1742293552896,-500.0,8.219e-05,2]
[356337354,1742293552917,-500.0,8.219e-05,2]
[356337355,1742293552937,-500.0,8.219e-05,2]
[356337356,1742293552957,-499.79919571,8.219e-05,2]
[356337357,1742293552978,-500.0,8.219e-05,2]
[356337358,1742293552997,-500.0,8.219e-05,2]
[356337359,1742293553018,-500.0,8.219e-05,2]
[356337360,1742293553039,-500.0,8.219e-05,2]
[356337361,1742293553058,-500.0,8.219e-05,2]
[356337362,1742293553078,-500.0,8.219e-05,2]
[356337363,1742293553099,-500.0,8.219e-05,2]
[356337364,1742293553120,-500.0,8.219e-05,2]
[356337365,1742293553141,-500.0,8.219e-05,2]
[356337366,1742293553161,-559.73573158,8.219e-05,2]
[356337367,1742293553182,-31959.83,8.219e-05,2]
[356337368,1742293553390,-729.66,8.219e-05,2]
[356337369,1742293553412,-500.0,8.219e-05,2]
[356337370,1742293553433,-500.0,8.219e-05,2]
[356337371,1742293553455,-500.0,8.219e-05,2]
[356337372,1742293553475,-500.0,8.219e-05,2]
[356337373,1742293553495,-1000.0,8.219e-05,2]
[356337374,1742293553515,-660.47,8.219e-05,2]
[356337375,1742293553536,-500.0,8.219e-05,2]
[356337376,1742293553556,-500.0,8.219e-05,2]
[356337377,1742293553576,-500.0,8.219e-05,2]
[356337378,1742293553597,-500.0,8.219e-05,2]
[356337379,1742293553617,-500.0,8.219e-05,2]
[356337380,1742293553638,-500.0,8.219e-05,2]
[356337381,1742293553658,-1184.42,8.219e-05,2]
[356337382,1742293553678,-500.0,8.219e-05,2]
[356337383,1742293553698,-500.0,8.219e-05,2]
[356337384,1742293553719,-500.0,8.219e-05,2]
[356337385,1742293553740,-812.93,8.219e-05,2]
[356337386,1742293553760,-7916.69,8.219e-05,2]
[356337387,1742293553780,-500.0,8.219e-05,2]
[356337388,1742293553801,-500.0,8.219e-05,2]
[356337389,1742293553823,-500.0,8.219e-05,2]
[356337390,1742293553844,-557.4,8.219e-05,2]
[356337391,1742293553865,-500.0,8.219e-05,2]
[356337392,1742293553886,-500.0,8.219e-05,2]
[356337393,1742293553906,-529.87,8.219e-05,2]
[356337394,1742293553927,-500.0,8.219e-05,2]
[356337395,1742293553949,-1572.06,8.219e-05,2]
[356337396,1742293553969,-513.60814533,8.219e-05,2]
[356337397,1742293553989,-265.53327347,8.219e-05,2]
[356337398,1742293554009,-500.0,8.219e-05,2]
[356337399,1742293554031,-500.0,8.219e-05,2]
[356337400,1742293554052,-500.0,8.219e-05,2]
[356337401,1742293554072,-9273.36,8.219e-05,2]
[356337402,1742293554093,-717.15,8.219e-05,2]
[356337403,1742293554115,-500.0,8.219e-05,2]
[356337404,1742293554136,-571.68,8.219e-05,2]
[356337405,1742293554157,-500.0,8.219e-05,2]
[356337406,1742293554177,-500.0,8.219e-05,2]
[356337407,1742293554198,-500.0,8.219e-05,2]
[356337408,1742293554220,-500.0,8.219e-05,2]
[356337409,1742293554241,-500.0,8.219e-05,2]
[356337410,1742293554261,-500.0,8.219e-05,2]
[356337411,1742293554285,-500.0,8.219e-05,2]
[356337412,1742293554306,-681.83,8.219e-05,2]
[356337413,1742293554328,-500.0,8.219e-05,2]
[356337414,1742293554349,-500.0,8.219e-05,2]
[356337415,1742293554373,-549.45,8.219e-05,2]
[356337416,1742293554394,-370.01406917,8.219e-05,2]
[356337417,1742293554414,-500.0,8.219e-05,2]
[356337418,1742293554436,-500.0,8.219e-05,2]
[356337419,1742293554456,-500.0,8.219e-05,2]
[356337420,1742293554477,-1493.59,8.219e-05,2]
[356337421,1742293554498,-574.04,8.219e-05,2]
[356337422,1742293554518,-7503.13,8.219e-05,2]
[356337423,1742293554538,-3000.0,8.393e-05,2]
[356337424,1742293554558,-500.0,8.493e-05,2]
[356337425,1742293554581,-500.0,8.493e-05,2]
[356337426,1742293554602,-238.45205231,8.493e-05,2]
[356337427,1742293554622,-500.0,8.493e-05,2]
[356337428,1742293554643,-500.0,8.493e-05,2]
[356337429,1742293554664,-497.72708755,8.493e-05,2]
[356337430,1742293554685,-500.0,8.493e-05,2]
[356337431,1742293554704,-515.70300718,8.493e-05,2]
[356337432,1742293554724,-500.0,8.493e-05,2]
[356337433,1742293554744,-500.0,8.493e-05,2]
[356337434,1742293554763,-500.0,8.493e-05,2]
[356337435,1742293554784,-390.33116891,8.493e-05,2]
[356337436,1742293554804,-413.59423742,8.493e-05,2]
[356337437,1742293554825,-500.0,8.493e-05,2]
[356337438,1742293554845,-876.04,8.493e-05,2]
[356337439,1742293554865,-500.0,8.493e-05,2]
[356337440,1742293554886,-500.0,8.493e-05,2]
[356337441,1742293554906,-500.0,8.493e-05,2]
[356337442,1742293554927,-500.0,8.493e-05,2]
[356337443,1742293554948,-500.0,8.493e-05,2]
[356337444,1742293554968,-500.0,8.493e-05,2]
[356337445,1742293554989,-500.0,8.493e-05,2]
[356337446,1742293555009,-500.0,8.493e-05,2]
[356337447,1742293555030,-500.0,8.493e-05,2]
[356337448,1742293555051,-500.0,8.493e-05,2]
[356337449,1742293555071,-179.58,8.493e-05,2]
[356337450,1742293555091,-500.0,8.493e-05,2]
[356337451,1742293555111,-151.81713885,8.493e-05,2]
[356337452,1742293555132,-31959.83,8.493e-05,2]
[356337453,1742293555153,-729.66,8.493e-05,2]
[356337454,1742293555173,-500.0,8.493e-05,2]
[356337455,1742293555194,-500.0,8.493e-05,2]
[356337456,1742293555213,-500.0,8.493e-05,2]
[356337457,1742293555235,-500.0,8.493e-05,2]
[356337458,1742293555254,-1000.0,8.493e-05,2]
[356337459,1742293555274,-660.47,8.493e-05,2]
[356337460,1742293555296,-500.0,8.493e-05,2]
[356337461,1742293555316,-258.96542001,8.493e-05,2]
[356337462,1742293555337,-500.0,8.493e-05,2]
[356337463,1742293555356,-500.0,8.493e-05,2]
[356337464,1742293555381,-500.0,8.493e-05,2]
[356337465,1742293555402,-381.79110929,8.493e-05,2]
[356337466,1742293555424,-1184.42,8.493e-05,2]
[356337467,1742293555445,-500.0,8.493e-05,2]
[356337468,1742293555467,-500.0,8.493e-05,2]
[356337469,1742293555489,-500.0,8.493e-05,2]
[356337470,1742293555511,-812.93,8.493e-05,2]
[356337471,1742293555534,-7916.69,8.493e-05,2]
[356337472,1742293555556,-500.0,8.493e-05,2]
[356337473,1742293555578,-500.0,8.493e-05,2]
[356337474,1742293555599,-500.0,8.493e-05,2]
[356337475,1742293555619,-500.0,8.493e-05,2]
[356337476,1742293555639,-500.0,8.493e-05,2]
[356337477,1742293555659,-529.87,8.493e-05,2]
[356337478,1742293555679,-500.0,8.493e-05,2]
[356337479,1742293555700,-1572.06,8.493e-05,2]
[356337480,1742293555720,-500.0,8.493e-05,2]
[356337481,1742293555741,-559.95,8.493e-05,2]
[356337482,1742293555761,-500.0,8.493e-05,2]
[356337483,1742293555781,-9273.36,8.493e-05,2]
[356337484,1742293555803,-717.15,8.493e-05,2]
[356337485,1742293555825,-500.0,8.493e-05,2]
[356337486,1742293555846,-571.68,8.493e-05,2]
[356337487,1742293555867,-512.52726809,8.493e-05,2]
[356337488,1742293555888,-500.0,8.493e-05,2]
[356337489,1742293555911,-500.0,8.493e-05,2]
[356337490,1742293555933,-500.0,8.493e-05,2]
[356337491,1742293555956,-401.91329405,8.493e-05,2]
[356337492,1742293555977,-500.0,8.493e-05,2]
[356337493,1742293555998,-500.0,8.493e-05,2]
[356337494,1742293556021,-681.83,8.493e-05,2]
[356337495,1742293556042,-500.0,8.493e-05,2]
[356337496,1742293556063,-431.12,8.493e-05,2]
[356337497,1742293556084,-549.45,8.493e-05,2]
[356337498,1742293556105,-500.0,8.493e-05,2]
[356337499,1742293556125,-500.0,8.493e-05,2]
[356337500,1742293556145,-500.0,8.493e-05,2]
[356337501,1742293556165,-1493.59,8.493e-05,2]
[356337502,1742293556186,-574.04,8.493e-05,2]
[356337503,1742293556207,-7503.13,8.493e-05,2]
[356337504,1742293556228,-500.0,8.767e-05,2]
[356337505,1742293556249,-500.0,8.767e-05,2]
[356337506,1742293556269,-500.0,8.767e-05,2]
[356337507,1742293556294,-500.0,8.767e-05,2]
[356337508,1742293556315,-500.0,8.767e-05,2]
[356337509,1742293556338,-500.0,8.767e-05,2]
[356337510,1742293556360,-117.10916235,8.767e-05,2]
[356337511,1742293556488,-382.89083765,8.767e-05,2]
[356337512,1742293556507,-500.0,8.767e-05,2]
[356337513,1742293556527,-500.0,8.767e-05,2]
[356337514,1742293556547,-876.04,8.767e-05,2]
[356337515,1742293556566,-500.0,8.767e-05,2]
[356337516,1742293556586,-500.0,8.767e-05,2]
[356337517,1742293556605,-500.0,8.767e-05,2]
[356337518,1742293556624,-500.0,8.767e-05,2]
[356337519,1742293556644,-500.0,8.767e-05,2]
[356337520,1742293556664,-500.0,8.767e-05,2]
[356337521,1742293556684,-500.0,8.767e-05,2]
[356337522,1742293556704,-500.0,8.767e-05,2]
[356337523,1742293556726,-500.0,8.767e-05,2]
[356337524,1742293556746,-500.0,8.767e-05,2]
[356337525,1742293556766,-500.0,8.767e-05,2]
[356337526,1742293556787,-31959.83,8.767e-05,2]
[356337527,1742293556809,-729.66,8.767e-05,2]
[356337528,1742293556831,-500.0,8.767e-05,2]
[356337529,1742293556852,-500.0,8.767e-05,2]
[356337530,1742293556873,-500.0,8.767e-05,2]
[356337531,1742293556896,-500.0,8.767e-05,2]
[356337532,1742293556917,-1000.0,8.767e-05,2]
[356337533,1742293556937,-660.47,8.767e-05,2]
[356337534,1742293556958,-500.0,8.767e-05,2]
[356337535,1742293556978,-500.0,8.767e-05,2]
[356337536,1742293556999,-500.0,8.767e-05,2]
[356337537,1742293557021,-153.3360316,8.767e-05,2]
[356337538,1742293557196,-1184.42,8.767e-05,2]
[356337539,1742293557217,-500.0,8.767e-05,2]
[356337540,1742293557238,-500.0,8.767e-05,2]
[356337541,1742293557259,-812.93,8.767e-05,2]
[356337542,1742293557279,-7916.69,8.767e-05,2]
[356337543,1742293557303,-421.83889449,8.767e-05,2]
[356337544,1742293557325,-500.0,8.767e-05,2]
[356337545,1742293557345,-500.0,8.767e-05,2]
[356337546,1742293557367,-500.0,8.767e-05,2]
[356337547,1742293557388,-500.0,8.767e-05,2]
[356337548,1742293557409,-529.87,8.767e-05,2]
[356337549,1742293557429,-500.0,8.767e-05,2]
[356337550,1742293557450,-1572.06,8.767e-05,2]
[356337551,1742293557471,-500.0,8.767e-05,2]
[356337552,1742293557492,-500.0,8.767e-05,2]
[356337553,1742293557513,-9273.36,8.767e-05,2]
[356337554,1742293557533,-717.15,8.767e-05,2]
[356337555,1742293557554,-500.0,8.767e-05,2]
[356337556,1742293557575,-571.68,8.767e-05,2]
[356337557,1742293557596,-500.0,8.767e-05,2]
[356337558,1742293557617,-500.0,8.767e-05,2]
[356337559,1742293557638,-500.0,8.767e-05,2]
[356337560,1742293557660,-500.0,8.767e-05,2]
[356337561,1742293557682,-500.0,8.767e-05,2]
[356337562,1742293557704,-681.83,8.767e-05,2]
[356337563,1742293557725,-238.63969803,8.767e-05,2]
[356337564,1742293557747,-549.45,8.767e-05,2]
[356337565,1742293557767,-500.0,8.767e-05,2]
[356337566,1742293557790,-500.0,8.767e-05,2]
[356337567,1742293557810,-500.0,8.767e-05,2]
[356337568,1742293557833,-1493.59,8.767e-05,2]
[356337569,1742293557855,-574.04,8.767e-05,2]
[356337570,1742293557876,-7503.13,8.767e-05,2]
[356337571,1742293557897,-399.0,8.772e-05,2]
[356337572,1742293557918,-365.446,8.883e-05,2]
[356337573,1742293557940,-160.0,9.034e-05,2]
[356337574,1742293557963,-833.90657078,9.034e-05,2]
[356337575,1742293557985,-417.85479977,9.034e-05,2]
[356337576,1742293558007,-160.0,9.034e-05,2]
[356337577,1742293558036,-12458.93820146,9.034e-05,2]
[356337578,1742293558058,-587.0,9.035e-05,2]
[356337579,1742293558080,-500.0,9.041e-05,2]
[356337580,1742293558102,-500.0,9.041e-05,2]
[356337581,1742293558122,-500.0,9.041e-05,2]
[356337582,1742293558144,-500.0,9.041e-05,2]
[356337583,1742293558165,-500.0,9.041e-05,2]
[356337584,1742293558186,-500.0,9.041e-05,2]
[356337585,1742293558206,-500.0,9.041e-05,2]
[356337586,1742293558226,-500.0,9.041e-05,2]
[356337587,1742293558247,-500.0,9.041e-05,2]
[356337588,1742293558267,-876.04,9.041e-05,2]
[356337589,1742293558292,-500.0,9.041e-05,2]
[356337590,1742293558311,-500.0,9.041e-05,2]
[356337591,1742293558333,-500.0,9.041e-05,2]
[356337592,1742293558353,-500.0,9.041e-05,2]
[356337593,1742293558377,-500.0,9.041e-05,2]
[356337594,1742293558399,-500.0,9.041e-05,2]
[356337595,1742293558420,-500.0,9.041e-05,2]
[356337596,1742293558440,-500.0,9.041e-05,2]
[356337597,1742293558460,-500.0,9.041e-05,2]
[356337598,1742293558480,-500.0,9.041e-05,2]
[356337599,1742293558501,-31959.83,9.041e-05,2]
[356337600,1742293558522,-729.66,9.041e-05,2]
[356337601,1742293558542,-500.0,9.041e-05,2]
[356337602,1742293558563,-500.0,9.041e-05,2]
[356337603,1742293558583,-542.1073253,9.041e-05,2]
[356337604,1742293558603,-500.0,9.041e-05,2]
[356337605,1742293558624,-1000.0,9.041e-05,2]
[356337606,1742293558645,-660.47,9.041e-05,2]
[356337607,1742293558666,-500.0,9.041e-05,2]
[356337608,1742293558687,-500.0,9.041e-05,2]
[356337609,1742293558708,-500.0,9.041e-05,2]
[356337610,1742293558728,-1184.42,9.041e-05,2]
[356337611,1742293558748,-500.0,9.041e-05,2]
[356337612,1742293558769,-500.0,9.041e-05,2]
[356337613,1742293558790,-265.18379392,9.041e-05,2]
[356337627,1742293610094,-177.10636203,8.219e-05,2]
[356337628,1742293632106,-300.0,8.218e-05,2]
[356337629,1742293632132,-523.16363797,8.219e-05,2]
[356337630,1742293632162,-2442.59,8.219e-05,2]
[356337631,1742293632186,-500.0,8.219e-05,2]
[356337632,1742293632209,-500.0,8.219e-05,2]
[356337633,1742293632232,-500.0,8.219e-05,2]
[356337634,1742293632256,-500.0,8.219e-05,2]
[356337635,1742293632280,-500.0,8.219e-05,2]
[356337636,1742293632306,-1287.92,8.219e-05,2]
[356337637,1742293632329,-596.61,8.219e-05,2]
[356337638,1742293632353,-500.0,8.219e-05,2]
[356337639,1742293632379,-1419.93,8.219e-05,2]
[356337640,1742293632401,-450.71880971,8.219e-05,2]
[356337641,1742293632424,-500.0,8.219e-05,2]
[356337642,1742293632448,-500.0,8.219e-05,2]
[356337643,1742293632471,-500.0,8.219e-05,2]
[356337644,1742293632495,-700.27,8.493e-05,2]
[356337645,1742293632519,-2442.59,8.493e-05,2]
[356337646,1742293632544,-500.0,8.493e-05,2]
[356337647,1742293632571,-500.0,8.493e-05,2]
[356337648,1742293632602,-500.0,8.493e-05,2]
[356337649,1742293632625,-500.0,8.493e-05,2]
[356337650,1742293632647,-550.92279548,8.493e-05,2]
[356337651,1742293632668,-1287.92,8.493e-05,2]
[356337652,1742293632692,-596.61,8.493e-05,2]
[356337653,1742293632713,-500.0,8.493e-05,2]
[356337654,1742293632735,-1419.93,8.493e-05,2]
[356337655,1742293632757,-500.0,8.493e-05,2]
[356337656,1742293632778,-500.0,8.493e-05,2]
[356337657,1742293632801,-500.0,8.493e-05,2]
[356337658,1742293632824,-700.27,8.767e-05,2]
[356337659,1742293632849,-2442.59,8.767e-05,2]
[356337660,1742293632875,-500.0,8.767e-05,2]
[356337661,1742293632899,-500.0,8.767e-05,2]
[356337662,1742293632924,-500.0,8.767e-05,2]
[356337663,1742293632947,-500.0,8.767e-05,2]
[356337664,1742293632970,-1287.92,8.767e-05,2]
[356337665,1742293632994,-596.61,8.767e-05,2]
[356337666,1742293633019,-500.0,8.767e-05,2]
[356337667,1742293633042,-1419.93,8.767e-05,2]
[356337668,1742293633065,-500.0,8.767e-05,2]
[356337669,1742293633088,-500.0,8.767e-05,2]
[356337670,1742293633112,-500.0,8.767e-05,2]
[356337671,1742293633137,-157.23179204,9.04e-05,2]
[356337672,1742293633159,-420.0,9.04e-05,2]
[356337673,1742293633182,-7916.69,9.041e-05,2]
[356337674,1742293633205,-500.0,9.041e-05,2]
[356337675,1742293633228,-500.0,9.041e-05,2]
[356337676,1742293633250,-500.0,9.041e-05,2]
[356337677,1742293633276,-1572.06,9.041e-05,2]
[356337678,1742293633310,-500.0,9.041e-05,2]
[356337679,1742293633332,-9273.36,9.041e-05,2]
[356337680,1742293633358,-500.0,9.041e-05,2]
[356337681,1742293633381,-717.15,9.041e-05,2]
[356337682,1742293633404,-500.0,9.041e-05,2]
[356337683,1742293633427,-571.68,9.041e-05,2]
[356337684,1742293633450,-500.0,9.041e-05,2]
[356337685,1742293633472,-500.0,9.041e-05,2]
[356337686,1742293633495,-500.0,9.041e-05,2]
[356337687,1742293633516,-500.0,9.041e-05,2]
[356337688,1742293633538,-549.45,9.041e-05,2]
[356337689,1742293633561,-500.0,9.041e-05,2]
[356337690,1742293633584,-500.0,9.041e-05,2]
[356337691,1742293633613,-1493.59,9.041e-05,2]
[356337692,1742293633635,-574.04,9.041e-05,2]
[356337693,1742293633657,-7503.13,9.041e-05,2]
[356337694,1742293633680,-700.27,9.041e-05,2]
[356337695,1742293633703,-2442.59,9.041e-05,2]
[356337696,1742293633726,-500.0,9.041e-05,2]
[356337697,1742293633747,-500.0,9.041e-05,2]
[356337698,1742293633769,-500.0,9.041e-05,2]
[356337699,1742293633791,-500.0,9.041e-05,2]
[356337700,1742293633814,-1287.92,9.041e-05,2]
[356337701,1742293633838,-596.61,9.041e-05,2]
[356337702,1742293633862,-500.0,9.041e-05,2]
[356337703,1742293633887,-1419.93,9.041e-05,2]
[356337704,1742293633909,-151.0,9.041e-05,2]
[356337705,1742293633932,-500.0,9.041e-05,2]
[356337706,1742293633955,-500.0,9.041e-05,2]
[356337707,1742293633977,-500.0,9.041e-05,2]
[356337708,1742293633999,-500.0,9.314e-05,2]
[356337709,1742293634021,-614.44907572,9.314e-05,2]
[356337710,1742293634043,-500.0,9.315e-05,2]
[356337711,1742293634065,-500.0,9.315e-05,2]
[356337712,1742293634087,-500.0,9.315e-05,2]
[356337713,1742293634109,-406.96139114,9.315e-05,2]
[356337714,1742293634131,-500.0,9.315e-05,2]
[356337715,1742293634152,-500.0,9.315e-05,2]
[356337716,1742293634174,-500.0,9.315e-05,2]
[356337717,1742293634196,-500.0,9.315e-05,2]
[356337718,1742293634219,-500.0,9.315e-05,2]
[356337719,1742293634240,-876.04,9.315e-05,2]
[356337720,1742293634263,-500.0,9.315e-05,2]
[356337721,1742293634285,-500.0,9.315e-05,2]
[356337722,1742293634311,-500.0,9.315e-05,2]
[356337723,1742293634333,-500.0,9.315e-05,2]
[356337724,1742293634357,-500.0,9.315e-05,2]
[356337725,1742293634380,-500.0,9.315e-05,2]
[356337726,1742293634403,-500.0,9.315e-05,2]
[356337727,1742293634425,-31959.83,9.315e-05,2]
[356337728,1742293634447,-729.66,9.315e-05,2]
[356337729,1742293634469,-500.0,9.315e-05,2]
[356337730,1742293634491,-500.0,9.315e-05,2]
[356337731,1742293634513,-500.0,9.315e-05,2]
[356337732,1742293634534,-774.056639,9.315e-05,2]
[356337733,1742293634556,-500.0,9.315e-05,2]
[356337734,1742293634578,-10.81137594,9.315e-05,2]
[356337735,1742293635622,-160.0,9.07e-05,2]
[356337736,1742293635642,-833.90657078,9.07e-05,2]
[356337737,1742293635664,-489.18862406,9.315e-05,2]
[356337738,1742293635685,-500.0,9.315e-05,2]
[356337739,1742293635708,-1184.42,9.315e-05,2]
[356337740,1742293635729,-500.0,9.315e-05,2]
[356337741,1742293635751,-500.0,9.315e-05,2]
[356337742,1742293635771,-7916.69,9.315e-05,2]
[356337743,1742293635792,-500.0,9.315e-05,2]
[356337744,1742293635813,-500.0,9.315e-05,2]
[356337745,1742293635835,-316.60521712,9.315e-05,2]
[356337746,1742293635857,-1572.06,9.315e-05,2]
[356337747,1742293635880,-500.0,9.315e-05,2]
[356337748,1742293635902,-9273.36,9.315e-05,2]
[356337749,1742293635923,-500.0,9.315e-05,2]
[356337750,1742293635946,-717.15,9.315e-05,2]
[356337751,1742293635968,-500.0,9.315e-05,2]
[356337752,1742293635989,-571.68,9.315e-05,2]
[356337753,1742293636011,-500.0,9.315e-05,2]
[356337754,1742293636033,-500.0,9.315e-05,2]
[356337755,1742293636054,-500.0,9.315e-05,2]
[356337756,1742293636075,-500.0,9.315e-05,2]
[356337757,1742293636097,-549.45,9.315e-05,2]
[356337758,1742293636123,-500.0,9.315e-05,2]
[356337759,1742293636145,-500.0,9.315e-05,2]
[356337760,1742293636167,-1493.59,9.315e-05,2]
[356337761,1742293636188,-574.04,9.315e-05,2]
[356337762,1742293636211,-7503.13,9.315e-05,2]
[356337763,1742293636236,-700.27,9.315e-05,2]
[356337764,1742293636262,-2442.59,9.315e-05,2]
[356337765,1742293636287,-500.0,9.315e-05,2]
[356337766,1742293636312,-500.0,9.315e-05,2]
[356337767,1742293636334,-500.0,9.315e-05,2]
[356337768,1742293636356,-565.02753554,9.315e-05,2]